[Event "Titled Tuesday Blitz June 27 Early 2023"]
[White "Erzhanov, Arman"]
[Black "Weishaeutel, Moritz"]
[WhiteFideId "4138821"]
[BlackFideId "12967300"]
[WhiteElo "2500"]
[BlackElo "2648"]
[Result "1/2-1/2"]
[Round "5"]
[TimeControl "180+2"]
[Date "2023.06.27"]
[WhiteClock "0:00:15"]
[BlackClock "0:00:08"]
[Board "98"]

1. e4 {[%clk 0:03:00]}  e5 {[%clk 0:03:00]} 2. Nf3 {[%clk 0:03:00]}  Nf6 {[%clk 0:03:01]} 3. d3 {[%clk 0:02:57]}  Nc6 {[%clk 0:03:00]} 4. Be2 {[%clk 0:02:56]}  d5 {[%clk 0:03:00]} 5. Nbd2 {[%clk 0:02:56]}  g6 {[%clk 0:02:52]} 6. O-O {[%clk 0:02:56]}  Bg7 {[%clk 0:02:52]} 7. c3 {[%clk 0:02:56]}  O-O {[%clk 0:02:53]} 8. b4 {[%clk 0:02:56]}  a6 {[%clk 0:02:52]} 9. a3 {[%clk 0:02:57]}  h6 {[%clk 0:02:49]} 10. Re1 {[%clk 0:02:57]}  Be6 {[%clk 0:02:49]} 11. Bf1 {[%clk 0:02:57]}  Qd7 {[%clk 0:02:46]} 12. Qc2 {[%clk 0:02:57]}  Rad8 {[%clk 0:02:46]} 13. Bb2 {[%clk 0:02:57]}  Nh5 {[%clk 0:02:35]} 14. exd5 {[%clk 0:02:34]}  Bxd5 {[%clk 0:02:34]} 15. c4 {[%clk 0:02:34]}  Bxf3 {[%clk 0:02:17]} 16. Nxf3 {[%clk 0:02:35]}  Nf4 {[%clk 0:02:13]} 17. b5 {[%clk 0:02:16]}  axb5 {[%clk 0:02:08]} 18. cxb5 {[%clk 0:02:17]}  Nd4 {[%clk 0:02:09]} 19. Nxd4 {[%clk 0:02:06]}  exd4 {[%clk 0:02:10]} 20. a4 {[%clk 0:01:58]}  Rfe8 {[%clk 0:02:05]} 21. Qd2 {[%clk 0:01:55]}  Qg4 {[%clk 0:01:57]} 22. Kh1 {[%clk 0:01:43]}  Nd5 {[%clk 0:01:18]} 23. Rxe8+ {[%clk 0:01:06]}  Rxe8 {[%clk 0:01:19]} 24. Re1 {[%clk 0:01:06]}  Ra8 {[%clk 0:01:16]} 25. Re4 {[%clk 0:01:04]}  Qd7 {[%clk 0:00:50]} 26. Bxd4 {[%clk 0:01:03]}  f5 {[%clk 0:00:46]} 27. Bxg7 {[%clk 0:00:48]}  fxe4 {[%clk 0:00:46]} 28. Bxh6 {[%clk 0:00:45]}  Rxa4 {[%clk 0:00:30]} 29. Qg5 {[%clk 0:00:30]}  Kh7 {[%clk 0:00:22]} 30. Qh4 {[%clk 0:00:26]}  Ra1 {[%clk 0:00:08]} 31. Kg1 {[%clk 0:00:23]}  Kg8 {[%clk 0:00:03]} 32. dxe4 {[%clk 0:00:20]}  Nc3 {[%clk 0:00:02]} 33. g3 {[%clk 0:00:16]}  Qd1 {[%clk 0:00:02]} 34. Qh3 {[%clk 0:00:14]}  Qxf1+ {[%clk 0:00:02]} 35. Qxf1 {[%clk 0:00:14]}  Rxf1+ {[%clk 0:00:02]} 36. Kxf1 {[%clk 0:00:15]}  Nxe4 {[%clk 0:00:03]} 37. Bf4 {[%clk 0:00:15]}  c6 {[%clk 0:00:03]} 38. bxc6 {[%clk 0:00:15]}  bxc6 {[%clk 0:00:04]} 39. Ke2 {[%clk 0:00:16]}  Kf7 {[%clk 0:00:05]} 40. h4 {[%clk 0:00:16]}  Nf6 {[%clk 0:00:05]} 41. Kd3 {[%clk 0:00:16]}  Nd5 {[%clk 0:00:06]} 42. Bd2 {[%clk 0:00:15]}  Ke6 {[%clk 0:00:06]} 43. Kd4 {[%clk 0:00:16]}  Kd6 {[%clk 0:00:06]} 44. Bf4+ {[%clk 0:00:15]}  Nxf4 {[%clk 0:00:07]} 45. gxf4 {[%clk 0:00:16]}  Ke6 {[%clk 0:00:08]} 46. Kc5 {[%clk 0:00:13]}  Kf5 {[%clk 0:00:08]} 47. Kxc6 {[%clk 0:00:14]}  Kxf4 {[%clk 0:00:08]} 48. Kd6 {[%clk 0:00:14]}  Kg4 {[%clk 0:00:08]} 49. Ke6 {[%clk 0:00:14]}  Kxh4 {[%clk 0:00:08]} 50. Kf6 {[%clk 0:00:15]}  g5 {[%clk 0:00:09]} 51. Kf5 {[%clk 0:00:15]}  g4 {[%clk 0:00:09]} 52. Kf4 {[%clk 0:00:15]}  Kh3 {[%clk 0:00:08]} 53. Kf5 {[%clk 0:00:14]}  g3 {[%clk 0:00:07]} 54. fxg3 {[%clk 0:00:15]}  Kxg3 {[%clk 0:00:08]} 1/2-1/2


[Site "https://www.chess.com"]

[Event "Titled Tuesday Blitz June 27 Early 2023"]
[White "Osmak, Yuliia"]
[Black "Schnaider, Ilan"]
[WhiteFideId "14101602"]
[BlackFideId "169013"]
[WhiteElo "2500"]
[BlackElo "2640"]
[Result "0-1"]
[Round "5"]
[TimeControl "180+2"]
[Date "2023.06.27"]
[WhiteClock "0:00:04"]
[BlackClock "0:00:37"]
[Board "99"]

1. e4 {[%clk 0:01:32]}  d5 {[%clk 0:02:49]} 2. exd5 {[%clk 0:01:31]}  Qxd5 {[%clk 0:02:50]} 3. Nc3 {[%clk 0:01:31]}  Qa5 {[%clk 0:02:49]} 4. d4 {[%clk 0:01:31]}  c6 {[%clk 0:02:45]} 5. Nf3 {[%clk 0:01:31]}  Nf6 {[%clk 0:02:41]} 6. Bc4 {[%clk 0:01:31]}  e6 {[%clk 0:02:33]} 7. O-O {[%clk 0:01:29]}  Be7 {[%clk 0:02:33]} 8. Ne2 {[%clk 0:01:27]}  O-O {[%clk 0:02:31]} 9. c3 {[%clk 0:01:27]}  c5 {[%clk 0:02:30]} 10. dxc5 {[%clk 0:01:24]}  Qxc5 {[%clk 0:02:31]} 11. Qd4 {[%clk 0:01:22]}  Nc6 {[%clk 0:02:24]} 12. Qxc5 {[%clk 0:01:22]}  Bxc5 {[%clk 0:02:24]} 13. Bg5 {[%clk 0:01:20]}  Ne4 {[%clk 0:02:23]} 14. Bh4 {[%clk 0:01:12]}  e5 {[%clk 0:01:56]} 15. Bd5 {[%clk 0:01:05]}  Nf6 {[%clk 0:01:41]} 16. Bxc6 {[%clk 0:01:02]}  bxc6 {[%clk 0:01:42]} 17. Nxe5 {[%clk 0:01:01]}  Re8 {[%clk 0:01:33]} 18. Bg3 {[%clk 0:00:44]}  Nh5 {[%clk 0:01:01]} 19. Nd3 {[%clk 0:00:39]}  Bb6 {[%clk 0:00:50]} 20. Nef4 {[%clk 0:00:32]}  Nf6 {[%clk 0:00:44]} 21. Rfe1 {[%clk 0:00:23]}  Ba6 {[%clk 0:00:43]} 22. Rxe8+ {[%clk 0:00:21]}  Rxe8 {[%clk 0:00:43]} 23. Re1 {[%clk 0:00:20]}  Rd8 {[%clk 0:00:43]} 24. Nb4 {[%clk 0:00:19]}  Bb7 {[%clk 0:00:44]} 25. h3 {[%clk 0:00:17]}  c5 {[%clk 0:00:44]} 26. Nbd3 {[%clk 0:00:15]}  c4 {[%clk 0:00:43]} 27. Nb4 {[%clk 0:00:15]}  a5 {[%clk 0:00:43]} 28. Nc2 {[%clk 0:00:15]}  g5 {[%clk 0:00:43]} 29. Ne2 {[%clk 0:00:14]}  Rd2 {[%clk 0:00:43]} 30. Ned4 {[%clk 0:00:14]}  Ne4 {[%clk 0:00:42]} 31. Re3 {[%clk 0:00:11]}  f5 {[%clk 0:00:37]} 32. Re1 {[%clk 0:00:10]}  Nxg3 {[%clk 0:00:36]} 33. fxg3 {[%clk 0:00:10]}  Rxc2 {[%clk 0:00:36]} 34. Re8+ {[%clk 0:00:09]}  Kf7 {[%clk 0:00:37]} 35. Rb8 {[%clk 0:00:10]}  Bxd4+ {[%clk 0:00:37]} 36. cxd4 {[%clk 0:00:10]}  Bxg2 {[%clk 0:00:38]} 37. Rb7+ {[%clk 0:00:04]}  Bxb7 {[%clk 0:00:37]} 0-1


[Site "https://www.chess.com"]

[Event "Titled Tuesday Blitz June 27 Early 2023"]
[White "Chen, Justin"]
[Black "NLLO777"]
[WhiteFideId "2098199"]
[WhiteElo "2618"]
[BlackElo "2479"]
[Result "1-0"]
[Round "5"]
[TimeControl "180+2"]
[Date "2023.06.27"]
[WhiteClock "0:00:43"]
[BlackClock "0:01:23"]
[Board "104"]

1. d4 {[%clk 0:03:00]}  Nf6 {[%clk 0:03:00]} 2. c4 {[%clk 0:03:00]}  c5 {[%clk 0:03:00]} 3. e3 {[%clk 0:02:59]}  g6 {[%clk 0:03:00]} 4. Nf3 {[%clk 0:02:59]}  Bg7 {[%clk 0:03:00]} 5. b3 {[%clk 0:02:59]}  cxd4 {[%clk 0:02:58]} 6. Nxd4 {[%clk 0:02:59]}  O-O {[%clk 0:02:57]} 7. Bb2 {[%clk 0:02:59]}  d5 {[%clk 0:02:56]} 8. Nd2 {[%clk 0:03:00]}  Nc6 {[%clk 0:02:55]} 9. Be2 {[%clk 0:02:57]}  a5 {[%clk 0:02:46]} 10. O-O {[%clk 0:02:56]}  a4 {[%clk 0:02:46]} 11. bxa4 {[%clk 0:02:55]}  Bd7 {[%clk 0:02:37]} 12. Nb5 {[%clk 0:02:24]}  Qa5 {[%clk 0:02:19]} 13. cxd5 {[%clk 0:02:23]}  Nxd5 {[%clk 0:02:18]} 14. Bxg7 {[%clk 0:02:24]}  Kxg7 {[%clk 0:02:18]} 15. Nb3 {[%clk 0:01:52]}  Nc3 {[%clk 0:02:07]} 16. Nxc3 {[%clk 0:01:49]}  Qxc3 {[%clk 0:02:06]} 17. Qxd7 {[%clk 0:01:48]}  Rxa4 {[%clk 0:01:57]} 18. Bb5 {[%clk 0:01:37]}  Ra3 {[%clk 0:01:53]} 19. Bxc6 {[%clk 0:01:31]}  bxc6 {[%clk 0:01:52]} 20. Qxe7 {[%clk 0:01:22]}  Rfa8 {[%clk 0:01:51]} 21. Nd4 {[%clk 0:01:12]}  h5 {[%clk 0:01:34]} 22. Rac1 {[%clk 0:01:08]}  Qd3 {[%clk 0:01:30]} 23. Nxc6 {[%clk 0:00:48]}  Rxa2 {[%clk 0:01:26]} 24. Nb4 {[%clk 0:00:47]}  Qa3 {[%clk 0:01:24]} 25. Qe5+ {[%clk 0:00:46]}  f6 {[%clk 0:01:24]} 26. Qc7+ {[%clk 0:00:46]}  Kh6 {[%clk 0:01:25]} 27. Nxa2 {[%clk 0:00:46]}  Qxa2 {[%clk 0:01:25]} 28. Qf4+ {[%clk 0:00:43]}  g5 {[%clk 0:01:23]} 29. Qxf6+ {[%clk 0:00:44]}  Kh7 {[%clk 0:01:24]} 30. Rc7+ {[%clk 0:00:43]}  Kg8 {[%clk 0:01:23]} 31. Qg7# {[%clk 0:00:43]} 1-0


[Site "https://www.chess.com"]

[Event "Titled Tuesday Blitz June 27 Early 2023"]
[White "Elgersma, Onno"]
[Black "Lopez Gracia, Fernando"]
[WhiteFideId "1053531"]
[BlackFideId "2207184"]
[WhiteElo "2616"]
[BlackElo "2469"]
[Result "1-0"]
[Round "5"]
[TimeControl "180+2"]
[Date "2023.06.27"]
[WhiteClock "0:02:08"]
[BlackClock "0:02:22"]
[Board "106"]

1. Nf3 {[%clk 0:03:00]}  d5 {[%clk 0:02:59]} 2. b3 {[%clk 0:03:01]}  Nf6 {[%clk 0:02:57]} 3. Bb2 {[%clk 0:03:01]}  c6 {[%clk 0:02:56]} 4. e3 {[%clk 0:03:01]}  Bg4 {[%clk 0:02:55]} 5. h3 {[%clk 0:03:01]}  Bxf3 {[%clk 0:02:55]} 6. Qxf3 {[%clk 0:03:02]}  Nbd7 {[%clk 0:02:55]} 7. d4 {[%clk 0:02:59]}  e6 {[%clk 0:02:54]} 8. Nd2 {[%clk 0:02:59]}  Bd6 {[%clk 0:02:53]} 9. Bd3 {[%clk 0:02:58]}  Qe7 {[%clk 0:02:50]} 10. O-O {[%clk 0:02:54]}  e5 {[%clk 0:02:50]} 11. e4 {[%clk 0:02:19]}  dxe4 {[%clk 0:02:44]} 12. Nxe4 {[%clk 0:02:16]}  Nxe4 {[%clk 0:02:44]} 13. Qxe4 {[%clk 0:02:16]}  Nf6 {[%clk 0:02:39]} 14. Qh4 {[%clk 0:02:15]}  exd4 {[%clk 0:02:29]} 15. Rfe1 {[%clk 0:02:11]}  Be5 {[%clk 0:02:22]} 16. f4 {[%clk 0:02:08]} 1-0


[Site "https://www.chess.com"]

[Event "Titled Tuesday Blitz June 27 Early 2023"]
[White "Tokman, Ariel"]
[Black "Jakubowski, Krzysztof"]
[WhiteFideId "117420"]
[BlackFideId "1112848"]
[WhiteElo "2469"]
[BlackElo "2615"]
[Result "0-1"]
[Round "5"]
[TimeControl "180+2"]
[Date "2023.06.27"]
[WhiteClock "0:00:00"]
[BlackClock "0:00:05"]
[Board "107"]

1. d4 {[%clk 0:03:00]}  Nf6 {[%clk 0:02:57]} 2. Bf4 {[%clk 0:02:58]}  d6 {[%clk 0:02:53]} 3. e3 {[%clk 0:02:58]}  Nbd7 {[%clk 0:02:52]} 4. Nf3 {[%clk 0:02:57]}  Nh5 {[%clk 0:02:51]} 5. Bg5 {[%clk 0:02:56]}  h6 {[%clk 0:02:50]} 6. Bh4 {[%clk 0:02:57]}  g5 {[%clk 0:02:49]} 7. Bg3 {[%clk 0:02:57]}  e6 {[%clk 0:02:44]} 8. Bd3 {[%clk 0:02:54]}  f5 {[%clk 0:02:38]} 9. Nfd2 {[%clk 0:02:49]}  Ndf6 {[%clk 0:02:30]} 10. c4 {[%clk 0:02:35]}  Qe7 {[%clk 0:02:26]} 11. Nc3 {[%clk 0:02:33]}  Bd7 {[%clk 0:02:25]} 12. Bf1 {[%clk 0:02:16]}  O-O-O {[%clk 0:02:19]} 13. Be2 {[%clk 0:02:16]}  Qf7 {[%clk 0:01:57]} 14. Qc2 {[%clk 0:01:38]}  Be7 {[%clk 0:01:36]} 15. O-O-O {[%clk 0:01:37]}  Rhg8 {[%clk 0:01:36]} 16. Bd3 {[%clk 0:01:17]}  f4 {[%clk 0:01:28]} 17. exf4 {[%clk 0:01:18]}  gxf4 {[%clk 0:01:27]} 18. Bh4 {[%clk 0:01:17]}  Rxg2 {[%clk 0:01:23]} 19. Rde1 {[%clk 0:01:07]}  Rdg8 {[%clk 0:01:19]} 20. Qb3 {[%clk 0:00:47]}  Kb8 {[%clk 0:01:09]} 21. Nde4 {[%clk 0:00:39]}  Bc8 {[%clk 0:01:08]} 22. c5 {[%clk 0:00:21]}  Nxe4 {[%clk 0:01:07]} 23. Bxe4 {[%clk 0:00:22]}  d5 {[%clk 0:01:00]} 24. Bxg2 {[%clk 0:00:20]}  Bxh4 {[%clk 0:01:00]} 25. Bf3 {[%clk 0:00:17]}  Bxf2 {[%clk 0:01:00]} 26. Rd1 {[%clk 0:00:15]}  Nf6 {[%clk 0:00:58]} 27. Rhf1 {[%clk 0:00:12]}  Be3+ {[%clk 0:00:57]} 28. Kb1 {[%clk 0:00:12]}  c6 {[%clk 0:00:48]} 29. a3 {[%clk 0:00:12]}  Qg6+ {[%clk 0:00:42]} 30. Ka2 {[%clk 0:00:11]}  Ne4 {[%clk 0:00:42]} 31. Nxe4 {[%clk 0:00:10]}  dxe4 {[%clk 0:00:42]} 32. Be2 {[%clk 0:00:11]}  Rd8 {[%clk 0:00:39]} 33. Qc3 {[%clk 0:00:09]}  Qg7 {[%clk 0:00:36]} 34. Bc4 {[%clk 0:00:08]}  Bxd4 {[%clk 0:00:35]} 35. Qb3 {[%clk 0:00:08]}  e5 {[%clk 0:00:34]} 36. Rfe1 {[%clk 0:00:07]}  e3 {[%clk 0:00:34]} 37. a4 {[%clk 0:00:07]}  Qe7 {[%clk 0:00:31]} 38. Rc1 {[%clk 0:00:06]}  Qc7 {[%clk 0:00:23]} 39. Bd3 {[%clk 0:00:06]}  Qa5 {[%clk 0:00:21]} 40. Kb1 {[%clk 0:00:05]}  f3 {[%clk 0:00:17]} 41. Be4 {[%clk 0:00:02]}  f2 {[%clk 0:00:14]} 42. Rxe3 {[%clk 0:00:03]}  Qd2 {[%clk 0:00:10]} 43. Rf3 {[%clk 0:00:02]}  Qe1 {[%clk 0:00:07]} 44. Bxc6 {[%clk 0:00:02]}  Be3 {[%clk 0:00:06]} 45. Rxe1 {[%clk 0:00:01]}  fxe1=Q+ {[%clk 0:00:05]} 46. Ka2 {[%clk 0:00:00]}  Bxc5 {[%clk 0:00:05]} 0-1


[Site "https://www.chess.com"]

[Event "Titled Tuesday Blitz June 27 Early 2023"]
[White "Eynullayev, Atilla"]
[Black "Komov, Roman"]
[WhiteFideId "13413570"]
[BlackFideId "24175714"]
[WhiteElo "2468"]
[BlackElo "2609"]
[Result "0-1"]
[Round "5"]
[TimeControl "180+2"]
[Date "2023.06.27"]
[WhiteClock "0:00:03"]
[BlackClock "0:00:03"]
[Board "109"]

1. d4 {[%clk 0:03:00]}  Nf6 {[%clk 0:02:59]} 2. c4 {[%clk 0:03:01]}  e6 {[%clk 0:02:59]} 3. Nc3 {[%clk 0:03:01]}  Bb4 {[%clk 0:02:58]} 4. e3 {[%clk 0:02:59]}  O-O {[%clk 0:02:58]} 5. Bd3 {[%clk 0:03:00]}  d5 {[%clk 0:02:58]} 6. Nf3 {[%clk 0:03:00]}  c5 {[%clk 0:02:58]} 7. cxd5 {[%clk 0:03:01]}  exd5 {[%clk 0:02:57]} 8. dxc5 {[%clk 0:03:01]}  Nc6 {[%clk 0:02:57]} 9. O-O {[%clk 0:03:01]}  Bg4 {[%clk 0:02:57]} 10. h3 {[%clk 0:03:01]}  Bh5 {[%clk 0:02:57]} 11. Na4 {[%clk 0:03:01]}  Qe7 {[%clk 0:02:40]} 12. a3 {[%clk 0:02:50]}  Bxc5 {[%clk 0:02:40]} 13. Nxc5 {[%clk 0:02:50]}  Qxc5 {[%clk 0:02:41]} 14. b4 {[%clk 0:02:34]}  Qc3 {[%clk 0:02:22]} 15. Ra2 {[%clk 0:02:34]}  Bxf3 {[%clk 0:02:14]} 16. gxf3 {[%clk 0:02:34]}  Qe5 {[%clk 0:02:12]} 17. f4 {[%clk 0:02:05]}  Qe6 {[%clk 0:02:09]} 18. Qf3 {[%clk 0:01:58]}  Ne4 {[%clk 0:02:03]} 19. Rc2 {[%clk 0:01:52]}  a6 {[%clk 0:01:54]} 20. Bb2 {[%clk 0:01:51]}  f6 {[%clk 0:01:52]} 21. Kh2 {[%clk 0:01:44]}  Kh8 {[%clk 0:01:52]} 22. Rg1 {[%clk 0:01:35]}  Rad8 {[%clk 0:01:49]} 23. Qh5 {[%clk 0:01:33]}  Qf7 {[%clk 0:01:34]} 24. Qh4 {[%clk 0:01:28]}  Ne7 {[%clk 0:00:58]} 25. f3 {[%clk 0:01:12]}  Nf5 {[%clk 0:00:58]} 26. Qe1 {[%clk 0:00:56]}  Ned6 {[%clk 0:00:58]} 27. e4 {[%clk 0:00:54]}  dxe4 {[%clk 0:00:39]} 28. fxe4 {[%clk 0:00:54]}  Rfe8 {[%clk 0:00:39]} 29. Rcg2 {[%clk 0:00:35]}  Qh5 {[%clk 0:00:24]} 30. Qa1 {[%clk 0:00:11]}  Nxe4 {[%clk 0:00:02]} 31. Bxe4 {[%clk 0:00:11]}  Rxe4 {[%clk 0:00:03]} 32. Bxf6 {[%clk 0:00:12]}  Rd3 {[%clk 0:00:03]} 33. Bxg7+ {[%clk 0:00:12]}  Kg8 {[%clk 0:00:04]} 34. Bh6+ {[%clk 0:00:08]}  Kf7 {[%clk 0:00:04]} 35. Rg7+ {[%clk 0:00:08]}  Ke6 {[%clk 0:00:04]} 36. Qa2+ {[%clk 0:00:09]}  Kd6 {[%clk 0:00:02]} 37. Qg2 {[%clk 0:00:04]}  Re2 {[%clk 0:00:02]} 38. Rg6+ {[%clk 0:00:03]}  hxg6 {[%clk 0:00:02]} 39. Bf8+ {[%clk 0:00:03]}  Kd7 {[%clk 0:00:01]} 40. Qxe2 {[%clk 0:00:01]}  Qxe2+ {[%clk 0:00:02]} 41. Rg2 {[%clk 0:00:02]}  Rxh3+ {[%clk 0:00:02]} 42. Kxh3 {[%clk 0:00:03]}  Qh5# {[%clk 0:00:03]} 0-1


[Site "https://www.chess.com"]

[Event "Titled Tuesday Blitz June 27 Early 2023"]
[White "infinitypoint"]
[Black "Mazurkiewicz, Michal"]
[BlackFideId "1124943"]
[WhiteElo "2607"]
[BlackElo "2465"]
[Result "1-0"]
[Round "5"]
[TimeControl "180+2"]
[Date "2023.06.27"]
[WhiteClock "0:00:34"]
[BlackClock "0:00:03"]
[Board "111"]

1. d4 {[%clk 0:03:00]}  Nf6 {[%clk 0:02:58]} 2. c4 {[%clk 0:03:00]}  e5 {[%clk 0:02:59]} 3. dxe5 {[%clk 0:03:00]}  Ng4 {[%clk 0:02:59]} 4. Nf3 {[%clk 0:03:00]}  Bc5 {[%clk 0:02:59]} 5. e3 {[%clk 0:03:01]}  Nc6 {[%clk 0:02:59]} 6. Nc3 {[%clk 0:03:01]}  O-O {[%clk 0:02:58]} 7. Qd5 {[%clk 0:03:00]}  Qe7 {[%clk 0:02:58]} 8. a3 {[%clk 0:02:55]}  a5 {[%clk 0:02:57]} 9. Nb5 {[%clk 0:02:49]}  d6 {[%clk 0:02:30]} 10. exd6 {[%clk 0:02:49]}  cxd6 {[%clk 0:02:31]} 11. Be2 {[%clk 0:02:40]}  Be6 {[%clk 0:02:31]} 12. Qd1 {[%clk 0:02:39]}  Rad8 {[%clk 0:02:26]} 13. Nc3 {[%clk 0:02:38]}  Nce5 {[%clk 0:01:38]} 14. Nd5 {[%clk 0:02:24]}  Nxf3+ {[%clk 0:01:29]} 15. Bxf3 {[%clk 0:02:24]}  Qh4 {[%clk 0:01:26]} 16. Qe2 {[%clk 0:01:59]}  Nxh2 {[%clk 0:01:05]} 17. g3 {[%clk 0:01:35]}  Nxf3+ {[%clk 0:00:36]} 18. Qxf3 {[%clk 0:01:36]}  Qg4 {[%clk 0:00:37]} 19. Qg2 {[%clk 0:01:15]}  Rfe8 {[%clk 0:00:35]} 20. Rh4 {[%clk 0:00:59]}  Qf5 {[%clk 0:00:20]} 21. Bd2 {[%clk 0:00:48]}  Bxd5 {[%clk 0:00:12]} 22. Qxd5 {[%clk 0:00:44]}  Re5 {[%clk 0:00:12]} 23. Qxb7 {[%clk 0:00:40]}  Rde8 {[%clk 0:00:12]} 24. O-O-O {[%clk 0:00:38]}  Qxf2 {[%clk 0:00:12]} 25. Rf4 {[%clk 0:00:36]}  R5e7 {[%clk 0:00:03]} 26. Qxe7 {[%clk 0:00:36]}  Qxd2+ {[%clk 0:00:03]} 27. Kxd2 {[%clk 0:00:33]}  Rxe7 {[%clk 0:00:03]} 28. Rf3 {[%clk 0:00:34]}  f5 {[%clk 0:00:03]} 29. Kd3 {[%clk 0:00:33]}  g6 {[%clk 0:00:04]} 30. Rb1 {[%clk 0:00:33]}  a4 {[%clk 0:00:04]} 31. b4 {[%clk 0:00:33]}  axb3 {[%clk 0:00:05]} 32. Rxb3 {[%clk 0:00:34]}  Ra7 {[%clk 0:00:06]} 33. e4 {[%clk 0:00:33]}  fxe4+ {[%clk 0:00:06]} 34. Kxe4 {[%clk 0:00:33]}  Bxa3 {[%clk 0:00:06]} 35. Rxa3 {[%clk 0:00:33]}  Kg7 {[%clk 0:00:04]} 36. Rxa7+ {[%clk 0:00:33]}  Kh6 {[%clk 0:00:03]} 37. Kf4 {[%clk 0:00:33]}  d5 {[%clk 0:00:03]} 38. Kg4 {[%clk 0:00:33]}  dxc4 {[%clk 0:00:03]} 39. Rff7 {[%clk 0:00:34]}  g5 {[%clk 0:00:03]} 40. Rf6# {[%clk 0:00:34]} 1-0


[Site "https://www.chess.com"]

[Event "Titled Tuesday Blitz June 27 Early 2023"]
[White "Herzog2012"]
[Black "Piesik, Piotr"]
[BlackFideId "1136194"]
[WhiteElo "2463"]
[BlackElo "2606"]
[Result "1-0"]
[Round "5"]
[TimeControl "180+2"]
[Date "2023.06.27"]
[WhiteClock "0:00:03"]
[BlackClock "0:00:00"]
[Board "112"]

1. e4 {[%clk 0:03:00]}  g6 {[%clk 0:02:55]} 2. d4 {[%clk 0:03:00]}  Bg7 {[%clk 0:02:55]} 3. Nc3 {[%clk 0:03:00]}  c6 {[%clk 0:02:55]} 4. a4 {[%clk 0:02:54]}  d6 {[%clk 0:02:55]} 5. f4 {[%clk 0:02:49]}  Nf6 {[%clk 0:02:53]} 6. Nf3 {[%clk 0:02:46]}  O-O {[%clk 0:02:49]} 7. Bd3 {[%clk 0:02:46]}  Bg4 {[%clk 0:02:46]} 8. h3 {[%clk 0:02:43]}  Bxf3 {[%clk 0:02:46]} 9. Qxf3 {[%clk 0:02:42]}  e5 {[%clk 0:02:46]} 10. dxe5 {[%clk 0:02:40]}  dxe5 {[%clk 0:02:46]} 11. f5 {[%clk 0:02:40]}  Nh5 {[%clk 0:02:41]} 12. Be3 {[%clk 0:01:57]}  Nd7 {[%clk 0:02:26]} 13. Ne2 {[%clk 0:01:37]}  Nf4 {[%clk 0:02:04]} 14. g3 {[%clk 0:00:59]}  Nxd3+ {[%clk 0:01:56]} 15. cxd3 {[%clk 0:00:58]}  Qa5+ {[%clk 0:01:56]} 16. Kf2 {[%clk 0:00:47]}  Nc5 {[%clk 0:01:53]} 17. f6 {[%clk 0:00:25]}  Nxd3+ {[%clk 0:01:52]} 18. Kg2 {[%clk 0:00:25]}  Bh8 {[%clk 0:01:52]} 19. h4 {[%clk 0:00:22]}  Rad8 {[%clk 0:01:42]} 20. g4 {[%clk 0:00:13]}  Nf4+ {[%clk 0:00:56]} 21. Nxf4 {[%clk 0:00:13]}  exf4 {[%clk 0:00:55]} 22. Qxf4 {[%clk 0:00:14]}  Rd3 {[%clk 0:00:43]} 23. Rad1 {[%clk 0:00:09]}  Qd8 {[%clk 0:00:36]} 24. Rxd3 {[%clk 0:00:07]}  Qxd3 {[%clk 0:00:36]} 25. g5 {[%clk 0:00:08]}  Re8 {[%clk 0:00:33]} 26. e5 {[%clk 0:00:06]}  Qd5+ {[%clk 0:00:30]} 27. Qf3 {[%clk 0:00:06]}  Qxe5 {[%clk 0:00:28]} 28. Bf4 {[%clk 0:00:05]}  Qxb2+ {[%clk 0:00:27]} 29. Kg3 {[%clk 0:00:05]}  h6 {[%clk 0:00:24]} 30. Rd1 {[%clk 0:00:03]}  hxg5 {[%clk 0:00:21]} 31. hxg5 {[%clk 0:00:04]}  Bxf6 {[%clk 0:00:20]} 32. gxf6 {[%clk 0:00:04]}  Qxf6 {[%clk 0:00:21]} 33. Rf1 {[%clk 0:00:04]}  Qf5 {[%clk 0:00:17]} 34. Kg2 {[%clk 0:00:04]}  Re4 {[%clk 0:00:00]} 35. Qg3 {[%clk 0:00:03]} 1-0


[Site "https://www.chess.com"]

[Event "Titled Tuesday Blitz June 27 Early 2023"]
[White "robertoalejandro10"]
[Black "Reprintsev, Alexander"]
[BlackFideId "14100541"]
[WhiteElo "2602"]
[BlackElo "2456"]
[Result "0-1"]
[Round "5"]
[TimeControl "180+2"]
[Date "2023.06.27"]
[WhiteClock "0:00:01"]
[BlackClock "0:00:26"]
[Board "114"]

1. Nf3 {[%clk 0:03:00]}  Nc6 {[%clk 0:02:57]} 2. c4 {[%clk 0:02:54]}  e5 {[%clk 0:02:56]} 3. Nc3 {[%clk 0:02:54]}  Bb4 {[%clk 0:02:48]} 4. Nd5 {[%clk 0:02:50]}  e4 {[%clk 0:02:46]} 5. Nxb4 {[%clk 0:02:13]}  Nxb4 {[%clk 0:02:44]} 6. Nd4 {[%clk 0:02:12]}  Qe7 {[%clk 0:02:38]} 7. a3 {[%clk 0:01:55]}  Nc6 {[%clk 0:02:38]} 8. Nxc6 {[%clk 0:01:55]}  dxc6 {[%clk 0:02:37]} 9. g3 {[%clk 0:01:56]}  h5 {[%clk 0:02:30]} 10. h4 {[%clk 0:01:55]}  Bg4 {[%clk 0:02:28]} 11. Bg2 {[%clk 0:01:55]}  O-O-O {[%clk 0:02:27]} 12. O-O {[%clk 0:01:53]}  Nf6 {[%clk 0:02:06]} 13. Re1 {[%clk 0:01:46]}  Qe6 {[%clk 0:02:04]} 14. Qa4 {[%clk 0:01:46]}  Kb8 {[%clk 0:02:04]} 15. d4 {[%clk 0:01:41]}  exd3 {[%clk 0:02:01]} 16. Be3 {[%clk 0:01:36]}  a6 {[%clk 0:01:23]} 17. exd3 {[%clk 0:01:35]}  Qf5 {[%clk 0:01:22]} 18. Bxc6 {[%clk 0:01:05]}  Bf3 {[%clk 0:00:57]} 19. Bxf3 {[%clk 0:00:43]}  Qxf3 {[%clk 0:00:57]} 20. b4 {[%clk 0:00:36]}  Rxd3 {[%clk 0:00:43]} 21. b5 {[%clk 0:00:32]}  Ng4 {[%clk 0:00:37]} 22. bxa6 {[%clk 0:00:16]}  Rxe3 {[%clk 0:00:34]} 23. Rxe3 {[%clk 0:00:09]}  Nxe3 {[%clk 0:00:34]} 24. fxe3 {[%clk 0:00:06]}  Qxg3+ {[%clk 0:00:33]} 25. Kh1 {[%clk 0:00:06]}  Qxh4+ {[%clk 0:00:33]} 26. Kg1 {[%clk 0:00:06]}  Qg3+ {[%clk 0:00:31]} 27. Kh1 {[%clk 0:00:06]}  Qh3+ {[%clk 0:00:31]} 28. Kg1 {[%clk 0:00:06]}  Qxe3+ {[%clk 0:00:32]} 29. Kh1 {[%clk 0:00:07]}  Qe4+ {[%clk 0:00:31]} 30. Kh2 {[%clk 0:00:03]}  Qe5+ {[%clk 0:00:31]} 31. Kh3 {[%clk 0:00:04]}  Qxa1 {[%clk 0:00:29]} 32. axb7 {[%clk 0:00:05]}  Qc3+ {[%clk 0:00:27]} 33. Kh2 {[%clk 0:00:01]}  Qb2+ {[%clk 0:00:26]} 0-1


[Site "https://www.chess.com"]